[Event "Titled Tuesday Blitz June 27 Early 2023"]
[White "Mogirzan, Matei-Valeriu"]
[Black "TomLiu777"]
[WhiteFideId "1257455"]
[WhiteElo "2518"]
[BlackElo "2377"]
[Result "0-1"]
[Round "6"]
[TimeControl "180+2"]
[Date "2023.06.27"]
[WhiteClock "0:00:30"]
[BlackClock "0:00:18"]
[Board "143"]

1. e4 {[%clk 0:02:50]}  e6 {[%clk 0:02:47]} 2. d4 {[%clk 0:02:35]}  d5 {[%clk 0:02:47]} 3. Nd2 {[%clk 0:02:35]}  Be7 {[%clk 0:02:46]} 4. Ngf3 {[%clk 0:02:35]}  Nf6 {[%clk 0:02:46]} 5. e5 {[%clk 0:02:34]}  Nfd7 {[%clk 0:02:47]} 6. Bd3 {[%clk 0:02:35]}  c5 {[%clk 0:02:47]} 7. c3 {[%clk 0:02:34]}  Nc6 {[%clk 0:02:48]} 8. a3 {[%clk 0:02:32]}  a5 {[%clk 0:02:42]} 9. h4 {[%clk 0:02:32]}  cxd4 {[%clk 0:02:41]} 10. cxd4 {[%clk 0:02:31]}  Qb6 {[%clk 0:02:41]} 11. Qe2 {[%clk 0:02:06]}  Nxd4 {[%clk 0:02:41]} 12. Nxd4 {[%clk 0:02:07]}  Qxd4 {[%clk 0:02:42]} 13. Nf3 {[%clk 0:02:08]}  Qb6 {[%clk 0:02:35]} 14. Be3 {[%clk 0:02:03]}  Bc5 {[%clk 0:02:33]} 15. Bf4 {[%clk 0:01:53]}  h6 {[%clk 0:02:17]} 16. Rh3 {[%clk 0:01:50]}  Nb8 {[%clk 0:01:57]} 17. Rg3 {[%clk 0:01:47]}  g5 {[%clk 0:01:56]} 18. Bd2 {[%clk 0:01:35]}  Nc6 {[%clk 0:01:43]} 19. O-O-O {[%clk 0:01:15]}  Bd7 {[%clk 0:01:28]} 20. hxg5 {[%clk 0:01:13]}  Nd4 {[%clk 0:01:27]} 21. Nxd4 {[%clk 0:01:10]}  Bxd4 {[%clk 0:01:28]} 22. Bc3 {[%clk 0:01:08]}  Bxc3 {[%clk 0:01:17]} 23. bxc3 {[%clk 0:01:09]}  hxg5 {[%clk 0:01:11]} 24. Rxg5 {[%clk 0:01:04]}  Rc8 {[%clk 0:00:48]} 25. Qb2 {[%clk 0:00:58]}  Qd4 {[%clk 0:00:48]} 26. Kc2 {[%clk 0:00:51]}  Qxf2+ {[%clk 0:00:47]} 27. Rd2 {[%clk 0:00:51]}  Ba4+ {[%clk 0:00:45]} 28. Kb1 {[%clk 0:00:50]}  Qe3 {[%clk 0:00:20]} 29. Qxb7 {[%clk 0:00:30]}  Rh1+ {[%clk 0:00:18]} 0-1


[Site "https://www.chess.com"]

[Event "Titled Tuesday Blitz June 27 Early 2023"]
[White "Shubenkova, Veronika"]
[Black "Tarasova, Viktoriya"]
[WhiteFideId "44124040"]
[BlackFideId "4175840"]
[WhiteElo "2510"]
[BlackElo "2362"]
[Result "1/2-1/2"]
[Round "6"]
[TimeControl "180+2"]
[Date "2023.06.27"]
[WhiteClock "0:00:59"]
[BlackClock "0:00:08"]
[Board "146"]

1. e4 {[%clk 0:03:00]}  e5 {[%clk 0:02:57]} 2. Nf3 {[%clk 0:03:00]}  Nc6 {[%clk 0:02:55]} 3. Bb5 {[%clk 0:03:00]}  Nf6 {[%clk 0:02:55]} 4. Bxc6 {[%clk 0:03:00]}  dxc6 {[%clk 0:02:54]} 5. O-O {[%clk 0:03:01]}  Nd7 {[%clk 0:02:52]} 6. d4 {[%clk 0:03:01]}  exd4 {[%clk 0:02:52]} 7. Nxd4 {[%clk 0:03:01]}  g6 {[%clk 0:02:40]} 8. e5 {[%clk 0:02:57]}  Nc5 {[%clk 0:02:36]} 9. Re1 {[%clk 0:02:54]}  Bg7 {[%clk 0:02:29]} 10. c3 {[%clk 0:02:52]}  O-O {[%clk 0:02:27]} 11. Na3 {[%clk 0:02:51]}  Ne6 {[%clk 0:02:14]} 12. Nac2 {[%clk 0:02:46]}  c5 {[%clk 0:02:04]} 13. Nf3 {[%clk 0:02:41]}  b6 {[%clk 0:02:00]} 14. b3 {[%clk 0:02:35]}  Bb7 {[%clk 0:02:00]} 15. Bb2 {[%clk 0:02:35]}  Qxd1 {[%clk 0:01:58]} 16. Raxd1 {[%clk 0:02:34]}  Rad8 {[%clk 0:01:58]} 17. c4 {[%clk 0:02:30]}  Nf4 {[%clk 0:01:57]} 18. Ne3 {[%clk 0:02:24]}  Nd3 {[%clk 0:01:50]} 19. Re2 {[%clk 0:01:50]}  Bxf3 {[%clk 0:01:39]} 20. gxf3 {[%clk 0:01:50]}  Nxb2 {[%clk 0:01:36]} 21. Rxb2 {[%clk 0:01:45]}  Bxe5 {[%clk 0:01:28]} 22. Re2 {[%clk 0:01:43]}  Rxd1+ {[%clk 0:01:08]} 23. Nxd1 {[%clk 0:01:43]}  f6 {[%clk 0:01:06]} 24. Ne3 {[%clk 0:01:43]}  Rd8 {[%clk 0:00:53]} 25. Nd5 {[%clk 0:01:42]}  Kf7 {[%clk 0:00:21]} 26. f4 {[%clk 0:01:42]}  c6 {[%clk 0:00:21]} 27. Nxb6 {[%clk 0:01:32]}  axb6 {[%clk 0:00:12]} 28. fxe5 {[%clk 0:01:32]}  Re8 {[%clk 0:00:13]} 29. f4 {[%clk 0:01:25]}  g5 {[%clk 0:00:13]} 30. Rd2 {[%clk 0:01:18]}  gxf4 {[%clk 0:00:13]} 31. exf6 {[%clk 0:01:17]}  Kxf6 {[%clk 0:00:14]} 32. Kf2 {[%clk 0:01:17]}  Kf5 {[%clk 0:00:10]} 33. Rd7 {[%clk 0:01:16]}  h5 {[%clk 0:00:09]} 34. Rb7 {[%clk 0:01:13]}  Rd8 {[%clk 0:00:05]} 35. Rxb6 {[%clk 0:01:13]}  Rd2+ {[%clk 0:00:05]} 36. Kg1 {[%clk 0:01:13]}  Rxa2 {[%clk 0:00:06]} 37. Rxc6 {[%clk 0:01:13]}  Rb2 {[%clk 0:00:06]} 38. Rxc5+ {[%clk 0:01:13]}  Ke4 {[%clk 0:00:06]} 39. Rxh5 {[%clk 0:01:12]}  Rxb3 {[%clk 0:00:07]} 40. Rh8 {[%clk 0:01:09]}  Rb1+ {[%clk 0:00:07]} 41. Kf2 {[%clk 0:01:08]}  Rb2+ {[%clk 0:00:07]} 42. Ke1 {[%clk 0:01:08]}  Rb1+ {[%clk 0:00:07]} 43. Kf2 {[%clk 0:01:00]}  Rb2+ {[%clk 0:00:07]} 44. Kf1 {[%clk 0:01:00]}  Rb1+ {[%clk 0:00:07]} 45. Ke2 {[%clk 0:01:00]}  Rb2+ {[%clk 0:00:07]} 46. Kf1 {[%clk 0:00:59]}  Rb1+ {[%clk 0:00:08]} 47. Kf2 {[%clk 0:00:59]} 1/2-1/2


[Site "https://www.chess.com"]

[Event "Titled Tuesday Blitz June 27 Early 2023"]
[White "arenal72"]
[Black "Estrada Nieto, Julian"]
[BlackFideId "5101018"]
[WhiteElo "2359"]
[BlackElo "2507"]
[Result "1-0"]
[Round "6"]
[TimeControl "180+2"]
[Date "2023.06.27"]
[WhiteClock "0:00:31"]
[BlackClock "0:00:05"]
[Board "147"]

1. e4 {[%clk 0:02:56]}  e5 {[%clk 0:02:59]} 2. Nf3 {[%clk 0:02:54]}  Nc6 {[%clk 0:02:59]} 3. Bb5 {[%clk 0:02:53]}  a6 {[%clk 0:03:00]} 4. Ba4 {[%clk 0:02:54]}  Nf6 {[%clk 0:03:00]} 5. O-O {[%clk 0:02:51]}  Be7 {[%clk 0:03:00]} 6. Re1 {[%clk 0:02:50]}  b5 {[%clk 0:03:01]} 7. Bb3 {[%clk 0:02:48]}  d6 {[%clk 0:03:02]} 8. c3 {[%clk 0:02:38]}  O-O {[%clk 0:03:02]} 9. a4 {[%clk 0:02:34]}  b4 {[%clk 0:03:00]} 10. h3 {[%clk 0:02:30]}  Rb8 {[%clk 0:02:58]} 11. d4 {[%clk 0:02:25]}  bxc3 {[%clk 0:02:31]} 12. bxc3 {[%clk 0:02:25]}  exd4 {[%clk 0:02:28]} 13. cxd4 {[%clk 0:02:24]}  d5 {[%clk 0:02:28]} 14. e5 {[%clk 0:02:15]}  Ne4 {[%clk 0:02:28]} 15. Nbd2 {[%clk 0:02:11]}  Bf5 {[%clk 0:02:13]} 16. Ba3 {[%clk 0:02:07]}  Bxa3 {[%clk 0:01:50]} 17. Rxa3 {[%clk 0:02:06]}  Rb4 {[%clk 0:01:45]} 18. Qc1 {[%clk 0:01:58]}  Nxd4 {[%clk 0:01:32]} 19. Nxd4 {[%clk 0:01:43]}  Rxd4 {[%clk 0:01:30]} 20. Nf3 {[%clk 0:01:42]}  Rb4 {[%clk 0:01:21]} 21. Qc6 {[%clk 0:01:42]}  Be6 {[%clk 0:01:04]} 22. Rd1 {[%clk 0:01:41]}  Rb6 {[%clk 0:00:57]} 23. Qc2 {[%clk 0:01:40]}  Qe7 {[%clk 0:00:56]} 24. Raa1 {[%clk 0:01:38]}  c6 {[%clk 0:00:53]} 25. Nd4 {[%clk 0:01:35]}  Rfb8 {[%clk 0:00:45]} 26. a5 {[%clk 0:01:32]}  Rxb3 {[%clk 0:00:37]} 27. Nxb3 {[%clk 0:01:17]}  c5 {[%clk 0:00:36]} 28. Rab1 {[%clk 0:01:15]}  Rb5 {[%clk 0:00:24]} 29. f3 {[%clk 0:01:08]}  Ng3 {[%clk 0:00:19]} 30. Qf2 {[%clk 0:00:56]}  Nf5 {[%clk 0:00:15]} 31. Rdc1 {[%clk 0:00:41]}  c4 {[%clk 0:00:14]} 32. Nd4 {[%clk 0:00:40]}  Nxd4 {[%clk 0:00:13]} 33. Qxd4 {[%clk 0:00:41]}  Rxb1 {[%clk 0:00:10]} 34. Rxb1 {[%clk 0:00:40]}  h5 {[%clk 0:00:11]} 35. Rb6 {[%clk 0:00:35]}  Qa3 {[%clk 0:00:10]} 36. Rxa6 {[%clk 0:00:33]}  c3 {[%clk 0:00:10]} 37. Rc6 {[%clk 0:00:32]}  Qxa5 {[%clk 0:00:08]} 38. Rxc3 {[%clk 0:00:31]}  Qa1+ {[%clk 0:00:08]} 39. Kh2 {[%clk 0:00:31]}  h4 {[%clk 0:00:08]} 40. Rc8+ {[%clk 0:00:30]}  Kh7 {[%clk 0:00:05]} 41. Qxa1 {[%clk 0:00:31]} 1-0


[Site "https://www.chess.com"]

[Event "Titled Tuesday Blitz June 27 Early 2023"]
[White "Vovk, Orest"]
[Black "Dishman, Stephen"]
[WhiteFideId "14113490"]
[BlackFideId "403024"]
[WhiteElo "2506"]
[BlackElo "2359"]
[Result "0-1"]
[Round "6"]
[TimeControl "180+2"]
[Date "2023.06.27"]
[WhiteClock "0:00:00"]
[BlackClock "0:00:15"]
[Board "148"]

1. h3 {[%clk 0:02:50]}  d5 {[%clk 0:02:59]} 2. g4 {[%clk 0:02:51]}  e5 {[%clk 0:02:59]} 3. Bg2 {[%clk 0:02:52]}  c6 {[%clk 0:02:59]} 4. d4 {[%clk 0:02:52]}  e4 {[%clk 0:02:57]} 5. c4 {[%clk 0:02:53]}  Be6 {[%clk 0:02:54]} 6. Nc3 {[%clk 0:02:50]}  Qd7 {[%clk 0:02:52]} 7. Qb3 {[%clk 0:02:47]}  Bd6 {[%clk 0:02:40]} 8. c5 {[%clk 0:02:32]}  Be7 {[%clk 0:02:36]} 9. Bf4 {[%clk 0:02:30]}  h5 {[%clk 0:02:33]} 10. g5 {[%clk 0:01:51]}  h4 {[%clk 0:02:33]} 11. e3 {[%clk 0:01:50]}  Rh5 {[%clk 0:02:31]} 12. f3 {[%clk 0:01:49]}  Bxg5 {[%clk 0:02:28]} 13. Bxb8 {[%clk 0:01:32]}  Rxb8 {[%clk 0:02:27]} 14. f4 {[%clk 0:01:32]}  Bd8 {[%clk 0:02:17]} 15. Nge2 {[%clk 0:01:33]}  Bc7 {[%clk 0:02:10]} 16. O-O-O {[%clk 0:01:28]}  Ne7 {[%clk 0:02:05]} 17. Kb1 {[%clk 0:01:17]}  Nf5 {[%clk 0:02:04]} 18. Na4 {[%clk 0:01:13]}  b5 {[%clk 0:01:57]} 19. cxb6 {[%clk 0:01:11]}  axb6 {[%clk 0:01:58]} 20. Rc1 {[%clk 0:00:47]}  Rh6 {[%clk 0:01:48]} 21. Rhd1 {[%clk 0:00:43]}  Rg6 {[%clk 0:01:45]} 22. Bf1 {[%clk 0:00:43]}  Ne7 {[%clk 0:01:38]} 23. f5 {[%clk 0:00:30]}  Bxf5 {[%clk 0:01:37]} 24. Nf4 {[%clk 0:00:30]}  Bxf4 {[%clk 0:01:37]} 25. exf4 {[%clk 0:00:30]}  Rg3 {[%clk 0:01:26]} 26. Qb4 {[%clk 0:00:28]}  Bxh3 {[%clk 0:01:10]} 27. Ba6 {[%clk 0:00:22]}  Qa7 {[%clk 0:01:04]} 28. Be2 {[%clk 0:00:16]}  Rg6 {[%clk 0:00:57]} 29. Rh1 {[%clk 0:00:10]}  Bg4 {[%clk 0:00:57]} 30. Bf1 {[%clk 0:00:03]}  Rh6 {[%clk 0:00:54]} 31. Rg1 {[%clk 0:00:03]}  f5 {[%clk 0:00:52]} 32. a3 {[%clk 0:00:01]}  h3 {[%clk 0:00:51]} 33. Nc3 {[%clk 0:00:01]}  h2 {[%clk 0:00:51]} 34. Rh1 {[%clk 0:00:02]}  Bf3 {[%clk 0:00:51]} 35. Be2 {[%clk 0:00:03]}  Bxh1 {[%clk 0:00:50]} 36. Rxh1 {[%clk 0:00:04]}  Qa5 {[%clk 0:00:48]} 37. Qb3 {[%clk 0:00:03]}  b5 {[%clk 0:00:47]} 38. Na2 {[%clk 0:00:02]}  Qa4 {[%clk 0:00:45]} 39. Qc3 {[%clk 0:00:02]}  Kd7 {[%clk 0:00:44]} 40. Nb4 {[%clk 0:00:02]}  Rbh8 {[%clk 0:00:37]} 41. Qg3 {[%clk 0:00:02]}  g6 {[%clk 0:00:37]} 42. Qg5 {[%clk 0:00:01]}  Qb3 {[%clk 0:00:31]} 43. Qf6 {[%clk 0:00:01]}  Qe3 {[%clk 0:00:30]} 44. Bxb5 {[%clk 0:00:01]}  cxb5 {[%clk 0:00:28]} 45. Na6 {[%clk 0:00:02]}  Qd3+ {[%clk 0:00:27]} 46. Ka1 {[%clk 0:00:02]}  Rc8 {[%clk 0:00:23]} 47. Nc5+ {[%clk 0:00:01]}  Rxc5 {[%clk 0:00:22]} 48. dxc5 {[%clk 0:00:02]}  Qf3 {[%clk 0:00:20]} 49. Qd6+ {[%clk 0:00:02]}  Ke8 {[%clk 0:00:20]} 50. Rxh2 {[%clk 0:00:02]}  Rxh2 {[%clk 0:00:18]} 51. c6 {[%clk 0:00:03]}  Qb3 {[%clk 0:00:16]} 52. Qd7+ {[%clk 0:00:02]}  Kf7 {[%clk 0:00:16]} 53. Qxd5+ {[%clk 0:00:00]}  Nxd5 {[%clk 0:00:15]} 0-1


[Site "https://www.chess.com"]

[Event "Titled Tuesday Blitz June 27 Early 2023"]
[White "Vasques, Antonio Pedro Freixial"]
[Black "Vyatkin, Dmitry"]
[WhiteFideId "1908332"]
[BlackFideId "4171900"]
[WhiteElo "2359"]
[BlackElo "2502"]
[Result "1/2-1/2"]
[Round "6"]
[TimeControl "180+2"]
[Date "2023.06.27"]
[WhiteClock "0:00:15"]
[BlackClock "0:00:10"]
[Board "149"]

1. c4 {[%clk 0:02:30]}  Nf6 {[%clk 0:02:57]} 2. d4 {[%clk 0:02:27]}  g6 {[%clk 0:02:57]} 3. Nc3 {[%clk 0:02:26]}  Bg7 {[%clk 0:02:57]} 4. Nf3 {[%clk 0:02:27]}  d6 {[%clk 0:02:52]} 5. g3 {[%clk 0:02:11]}  O-O {[%clk 0:02:50]} 6. Bg2 {[%clk 0:02:11]}  Nc6 {[%clk 0:02:50]} 7. O-O {[%clk 0:02:11]}  a6 {[%clk 0:02:51]} 8. Qd3 {[%clk 0:02:10]}  Nb4 {[%clk 0:02:33]} 9. Qb1 {[%clk 0:02:09]}  a5 {[%clk 0:02:17]} 10. a3 {[%clk 0:01:56]}  Na6 {[%clk 0:02:17]} 11. Rd1 {[%clk 0:01:49]}  c6 {[%clk 0:02:15]} 12. e4 {[%clk 0:01:31]}  Bg4 {[%clk 0:02:04]} 13. h3 {[%clk 0:01:25]}  Bxf3 {[%clk 0:02:04]} 14. Bxf3 {[%clk 0:01:26]}  Qc7 {[%clk 0:02:03]} 15. Be3 {[%clk 0:01:05]}  e5 {[%clk 0:01:51]} 16. d5 {[%clk 0:00:56]}  Nc5 {[%clk 0:01:29]} 17. b4 {[%clk 0:00:51]}  axb4 {[%clk 0:01:29]} 18. axb4 {[%clk 0:00:52]}  Rxa1 {[%clk 0:01:29]} 19. Qxa1 {[%clk 0:00:53]}  Nb3 {[%clk 0:01:29]} 20. Qb2 {[%clk 0:00:53]}  Nd4 {[%clk 0:01:30]} 21. Bxd4 {[%clk 0:00:44]}  exd4 {[%clk 0:01:30]} 22. Ne2 {[%clk 0:00:44]}  Re8 {[%clk 0:01:06]} 23. Nxd4 {[%clk 0:00:19]}  Nxe4 {[%clk 0:00:55]} 24. Re1 {[%clk 0:00:19]}  c5 {[%clk 0:00:38]} 25. Rxe4 {[%clk 0:00:12]}  Rxe4 {[%clk 0:00:36]} 26. Bxe4 {[%clk 0:00:13]}  Bxd4 {[%clk 0:00:37]} 27. Qb3 {[%clk 0:00:12]}  Qb6 {[%clk 0:00:25]} 28. b5 {[%clk 0:00:12]}  Qa5 {[%clk 0:00:26]} 29. Kg2 {[%clk 0:00:12]}  Qe1 {[%clk 0:00:25]} 30. Qf3 {[%clk 0:00:12]}  f5 {[%clk 0:00:24]} 31. Bd3 {[%clk 0:00:13]}  Qd2 {[%clk 0:00:22]} 32. Qe2 {[%clk 0:00:14]}  Qxe2 {[%clk 0:00:14]} 33. Bxe2 {[%clk 0:00:15]}  Kf7 {[%clk 0:00:15]} 34. f4 {[%clk 0:00:15]}  Ke7 {[%clk 0:00:14]} 35. Kf3 {[%clk 0:00:14]}  Kd7 {[%clk 0:00:13]} 36. g4 {[%clk 0:00:14]}  fxg4+ {[%clk 0:00:13]} 37. hxg4 {[%clk 0:00:15]}  Ke7 {[%clk 0:00:14]} 38. Bd3 {[%clk 0:00:16]}  Kf6 {[%clk 0:00:14]} 39. g5+ {[%clk 0:00:16]}  Kf7 {[%clk 0:00:14]} 40. Kg4 {[%clk 0:00:17]}  Kg7 {[%clk 0:00:13]} 41. Be4 {[%clk 0:00:17]}  Be3 {[%clk 0:00:13]} 42. f5 {[%clk 0:00:16]}  gxf5+ {[%clk 0:00:12]} 43. Kxf5 {[%clk 0:00:17]}  Kf7 {[%clk 0:00:12]} 44. Bf3 {[%clk 0:00:17]}  b6 {[%clk 0:00:12]} 45. Bh5+ {[%clk 0:00:18]}  Ke7 {[%clk 0:00:12]} 46. Kg4 {[%clk 0:00:17]}  Kf8 {[%clk 0:00:11]} 47. Kf5 {[%clk 0:00:17]}  Ke7 {[%clk 0:00:11]} 48. Be2 {[%clk 0:00:16]}  Bd2 {[%clk 0:00:11]} 49. Bd3 {[%clk 0:00:16]}  Kf7 {[%clk 0:00:12]} 50. Kg4 {[%clk 0:00:15]}  Kg7 {[%clk 0:00:12]} 51. Kh5 {[%clk 0:00:15]}  Bc1 {[%clk 0:00:12]} 52. Bf5 {[%clk 0:00:15]}  Bd2 {[%clk 0:00:11]} 53. Be4 {[%clk 0:00:15]}  h6 {[%clk 0:00:11]} 54. gxh6+ {[%clk 0:00:11]}  Bxh6 {[%clk 0:00:10]} 55. Kg4 {[%clk 0:00:11]}  Kf6 {[%clk 0:00:10]} 56. Kf3 {[%clk 0:00:12]}  Ke5 {[%clk 0:00:11]} 57. Bd3 {[%clk 0:00:11]}  Kd4 {[%clk 0:00:11]} 58. Bf1 {[%clk 0:00:11]}  Bg7 {[%clk 0:00:08]} 59. Be2 {[%clk 0:00:12]}  Be5 {[%clk 0:00:08]} 60. Bf1 {[%clk 0:00:13]}  Kc3 {[%clk 0:00:08]} 61. Be2 {[%clk 0:00:14]}  Kd4 {[%clk 0:00:08]} 62. Bf1 {[%clk 0:00:14]}  Kc3 {[%clk 0:00:09]} 63. Be2 {[%clk 0:00:15]}  Kd4 {[%clk 0:00:10]} 1/2-1/2


[Site "https://www.chess.com"]

[Event "Titled Tuesday Blitz June 27 Early 2023"]
[White "Davidson, Kevin"]
[Black "Eynullayev, Altay"]
[WhiteFideId "2056810"]
[BlackFideId "13413562"]
[WhiteElo "2326"]
[BlackElo "2484"]
[Result "1-0"]
[Round "6"]
[TimeControl "180+2"]
[Date "2023.06.27"]
[WhiteClock "0:00:01"]
[BlackClock "0:00:00"]
[Board "154"]

1. e4 {[%clk 0:03:00]}  c5 {[%clk 0:02:59]} 2. Nf3 {[%clk 0:02:49]}  d6 {[%clk 0:02:59]} 3. d4 {[%clk 0:02:49]}  cxd4 {[%clk 0:03:00]} 4. Nxd4 {[%clk 0:02:49]}  Nf6 {[%clk 0:03:00]} 5. Nc3 {[%clk 0:02:48]}  a6 {[%clk 0:03:01]} 6. h3 {[%clk 0:02:44]}  e5 {[%clk 0:03:00]} 7. Nde2 {[%clk 0:02:43]}  h5 {[%clk 0:02:59]} 8. Bg5 {[%clk 0:02:42]}  Be6 {[%clk 0:02:59]} 9. Bxf6 {[%clk 0:02:39]}  Qxf6 {[%clk 0:02:59]} 10. Nd5 {[%clk 0:02:38]}  Qd8 {[%clk 0:02:59]} 11. Nec3 {[%clk 0:02:38]}  g6 {[%clk 0:02:56]} 12. Bc4 {[%clk 0:02:38]}  Bg7 {[%clk 0:02:52]} 13. O-O {[%clk 0:02:36]}  O-O {[%clk 0:02:50]} 14. Qd3 {[%clk 0:02:33]}  Nd7 {[%clk 0:02:40]} 15. a4 {[%clk 0:02:28]}  Rc8 {[%clk 0:02:37]} 16. a5 {[%clk 0:02:24]}  Nc5 {[%clk 0:02:32]} 17. Qe2 {[%clk 0:02:23]}  Rc6 {[%clk 0:02:24]} 18. b4 {[%clk 0:02:11]}  Nd7 {[%clk 0:02:20]} 19. Bb3 {[%clk 0:01:56]}  Qg5 {[%clk 0:01:43]} 20. Kh2 {[%clk 0:01:39]}  h4 {[%clk 0:01:37]} 21. Rad1 {[%clk 0:01:22]}  Rcc8 {[%clk 0:00:55]} 22. Rd3 {[%clk 0:01:08]}  Nb8 {[%clk 0:00:51]} 23. Nb6 {[%clk 0:01:02]}  Rcd8 {[%clk 0:00:50]} 24. Ncd5 {[%clk 0:00:55]}  Nc6 {[%clk 0:00:47]} 25. c3 {[%clk 0:00:54]}  Kh8 {[%clk 0:00:45]} 26. Rfd1 {[%clk 0:00:47]}  f5 {[%clk 0:00:41]} 27. f3 {[%clk 0:00:28]}  Rf7 {[%clk 0:00:33]} 28. Qd2 {[%clk 0:00:18]}  Bh6 {[%clk 0:00:25]} 29. Qxg5 {[%clk 0:00:17]}  Bxg5 {[%clk 0:00:26]} 30. Kg1 {[%clk 0:00:03]}  Kh7 {[%clk 0:00:15]} 31. Bc4 {[%clk 0:00:03]}  Kh6 {[%clk 0:00:14]} 32. Ne3 {[%clk 0:00:03]}  Bxe3+ {[%clk 0:00:13]} 33. Rxe3 {[%clk 0:00:04]}  Bxc4 {[%clk 0:00:13]} 34. Nxc4 {[%clk 0:00:04]}  fxe4 {[%clk 0:00:09]} 35. fxe4 {[%clk 0:00:04]}  Na7 {[%clk 0:00:03]} 36. Red3 {[%clk 0:00:04]}  Nb5 {[%clk 0:00:02]} 37. R1d2 {[%clk 0:00:02]}  Rfd7 {[%clk 0:00:02]} 38. Ne3 {[%clk 0:00:02]}  Rc7 {[%clk 0:00:02]} 39. Nd5 {[%clk 0:00:01]}  Rc4 {[%clk 0:00:02]} 40. Re2 {[%clk 0:00:01]}  Rf8 {[%clk 0:00:02]} 41. Rf2 {[%clk 0:00:01]}  Rxf2 {[%clk 0:00:02]} 42. Kxf2 {[%clk 0:00:02]}  Rxe4 {[%clk 0:00:02]} 43. Nb6 {[%clk 0:00:02]}  Rf4+ {[%clk 0:00:02]} 44. Ke2 {[%clk 0:00:02]}  e4 {[%clk 0:00:02]} 45. Rd4 {[%clk 0:00:01]}  Kg5 {[%clk 0:00:02]} 46. c4 {[%clk 0:00:01]}  Nc3+ {[%clk 0:00:00]} 47. Ke3 {[%clk 0:00:01]} 1-0


[Site "https://www.chess.com"]

[Event "Titled Tuesday Blitz June 27 Early 2023"]
[White "Corredor Castellanos, Camilo"]
[Black "EdmundPlayer"]
[WhiteFideId "4425871"]
[WhiteElo "2466"]
[BlackElo "2279"]
[Result "0-1"]
[Round "6"]
[TimeControl "180+2"]
[Date "2023.06.27"]
[WhiteClock "0:01:20"]
[BlackClock "0:00:12"]
[Board "159"]

1. e4 {[%clk 0:03:00]}  e5 {[%clk 0:02:58]} 2. Nf3 {[%clk 0:03:00]}  Nc6 {[%clk 0:02:58]} 3. Bb5 {[%clk 0:03:00]}  a6 {[%clk 0:02:58]} 4. Ba4 {[%clk 0:03:00]}  Nf6 {[%clk 0:02:58]} 5. d3 {[%clk 0:03:01]}  b5 {[%clk 0:02:57]} 6. Bb3 {[%clk 0:03:00]}  Bc5 {[%clk 0:02:57]} 7. Nc3 {[%clk 0:02:57]}  d6 {[%clk 0:02:55]} 8. a4 {[%clk 0:02:57]}  Rb8 {[%clk 0:02:45]} 9. axb5 {[%clk 0:02:55]}  axb5 {[%clk 0:02:46]} 10. O-O {[%clk 0:02:40]}  Bg4 {[%clk 0:02:36]} 11. h3 {[%clk 0:02:40]}  Bxf3 {[%clk 0:02:35]} 12. Qxf3 {[%clk 0:02:40]}  Nd4 {[%clk 0:02:34]} 13. Qg3 {[%clk 0:02:40]}  Nxb3 {[%clk 0:02:33]} 14. cxb3 {[%clk 0:02:40]}  O-O {[%clk 0:02:30]} 15. Bh6 {[%clk 0:02:28]}  Ne8 {[%clk 0:02:06]} 16. Kh1 {[%clk 0:02:28]}  Kh8 {[%clk 0:01:42]} 17. Bg5 {[%clk 0:02:26]}  Qd7 {[%clk 0:01:37]} 18. f4 {[%clk 0:02:24]}  h6 {[%clk 0:01:29]} 19. Bh4 {[%clk 0:02:22]}  exf4 {[%clk 0:01:27]} 20. Rxf4 {[%clk 0:02:20]}  Bd4 {[%clk 0:01:20]} 21. Raf1 {[%clk 0:02:11]}  Be5 {[%clk 0:01:17]} 22. Qg4 {[%clk 0:02:09]}  Qxg4 {[%clk 0:01:07]} 23. Rxg4 {[%clk 0:02:10]}  g5 {[%clk 0:00:52]} 24. Be1 {[%clk 0:02:05]}  Nf6 {[%clk 0:00:49]} 25. Rg3 {[%clk 0:01:54]}  Bxg3 {[%clk 0:00:48]} 26. Bxg3 {[%clk 0:01:55]}  Kg7 {[%clk 0:00:47]} 27. e5 {[%clk 0:01:53]}  Nh5 {[%clk 0:00:46]} 28. Bh2 {[%clk 0:01:53]}  Nf4 {[%clk 0:00:36]} 29. exd6 {[%clk 0:01:47]}  cxd6 {[%clk 0:00:35]} 30. h4 {[%clk 0:01:48]}  Rfd8 {[%clk 0:00:20]} 31. hxg5 {[%clk 0:01:35]}  hxg5 {[%clk 0:00:21]} 32. Ne4 {[%clk 0:01:34]}  Nxd3 {[%clk 0:00:17]} 33. Nxg5 {[%clk 0:01:32]}  Rd7 {[%clk 0:00:15]} 34. Rd1 {[%clk 0:01:20]}  Nf2+ {[%clk 0:00:12]} 0-1


[Site "https://www.chess.com"]

[Event "Titled Tuesday Blitz June 27 Early 2023"]
[White "Zuriel, Marisa"]
[Black "Eynullayev, Atilla"]
[WhiteFideId "109142"]
[BlackFideId "13413570"]
[WhiteElo "2261"]
[BlackElo "2463"]
[Result "1-0"]
[Round "6"]
[TimeControl "180+2"]
[Date "2023.06.27"]
[WhiteClock "0:01:30"]
[BlackClock "0:01:38"]
[Board "161"]

1. e4 {[%clk 0:03:00]}  c5 {[%clk 0:02:58]} 2. Nf3 {[%clk 0:03:00]}  e6 {[%clk 0:02:59]} 3. d4 {[%clk 0:03:01]}  cxd4 {[%clk 0:02:59]} 4. Nxd4 {[%clk 0:03:02]}  a6 {[%clk 0:03:00]} 5. Nc3 {[%clk 0:03:01]}  b5 {[%clk 0:03:01]} 6. a3 {[%clk 0:03:01]}  Bb7 {[%clk 0:03:01]} 7. Bd3 {[%clk 0:03:00]}  Nc6 {[%clk 0:03:02]} 8. Nxc6 {[%clk 0:02:59]}  Bxc6 {[%clk 0:03:03]} 9. O-O {[%clk 0:02:59]}  Ne7 {[%clk 0:03:02]} 10. f4 {[%clk 0:02:58]}  d5 {[%clk 0:03:02]} 11. e5 {[%clk 0:02:55]}  Nf5 {[%clk 0:03:03]} 12. Kh1 {[%clk 0:02:55]}  Qh4 {[%clk 0:02:43]} 13. Bxf5 {[%clk 0:02:54]}  exf5 {[%clk 0:02:43]} 14. Ne2 {[%clk 0:02:54]}  Bc5 {[%clk 0:02:33]} 15. Nd4 {[%clk 0:02:52]}  Bd7 {[%clk 0:02:33]} 16. Be3 {[%clk 0:02:51]}  Qe7 {[%clk 0:02:31]} 17. Qd2 {[%clk 0:02:18]}  O-O {[%clk 0:02:30]} 18. Rad1 {[%clk 0:02:07]}  Rfd8 {[%clk 0:02:28]} 19. Rf3 {[%clk 0:02:02]}  b4 {[%clk 0:02:11]} 20. axb4 {[%clk 0:02:01]}  Bxb4 {[%clk 0:02:05]} 21. c3 {[%clk 0:02:02]}  Bc5 {[%clk 0:02:03]} 22. Rg3 {[%clk 0:01:55]}  a5 {[%clk 0:01:57]} 23. Qc2 {[%clk 0:01:50]}  Bxd4 {[%clk 0:01:53]} 24. Bxd4 {[%clk 0:01:48]}  a4 {[%clk 0:01:51]} 25. e6 {[%clk 0:01:48]}  fxe6 {[%clk 0:01:44]} 26. Rxg7+ {[%clk 0:01:47]}  Qxg7 {[%clk 0:01:45]} 27. Bxg7 {[%clk 0:01:47]}  Kxg7 {[%clk 0:01:46]} 28. Rd3 {[%clk 0:01:38]}  Be8 {[%clk 0:01:43]} 29. Qe2 {[%clk 0:01:33]}  Bb5 {[%clk 0:01:38]} 30. Rg3+ {[%clk 0:01:30]} 1-0


[Site "https://www.chess.com"]